lending/lending_fUSD_20250917
["ID","MTS","AMOUNT","RATE_DAILY","PERIOD"]
[385911605,1758131475312,-400.0,0.00024861,2]
[385911606,1758131475321,-400.0,0.00024861,2]
[385911607,1758131475331,-400.0,0.00024861,2]
[385911608,1758131475340,-400.0,0.00024861,2]
[385911609,1758131475350,-400.0,0.00024861,2]
[385911610,1758131475359,-400.0,0.00024861,2]
[385911611,1758131475369,-400.0,0.00024861,2]
[385911612,1758131475378,-2034.54,0.00024861,2]
[385911613,1758131475387,-400.0,0.00024861,2]
[385911614,1758131475397,-400.0,0.00024861,2]
[385911615,1758131475406,-436.53,0.00024861,2]
[385911616,1758131475416,-400.0,0.00024861,2]
[385911617,1758131475426,-400.0,0.00024861,2]
[385911618,1758131475436,-400.0,0.00024861,2]
[385911619,1758131475446,-400.0,0.00024861,2]
[385911620,1758131475456,-600.71,0.00024861,2]
[385911621,1758131475466,-929.04,0.00024861,2]
[385911622,1758131475476,-400.0,0.00024861,2]
[385911623,1758131475485,-400.0,0.00024861,2]
[385911624,1758131475494,-400.0,0.00024861,2]
[385911625,1758131475504,-400.0,0.00024861,2]
[385911626,1758131475513,-400.0,0.00024861,2]
[385911627,1758131475522,-400.0,0.00024861,2]
[385911628,1758131475532,-789.08,0.00024861,2]
[385911629,1758131475541,-400.0,0.00024861,2]
[385911630,1758131475550,-400.0,0.00024861,2]
[385911631,1758131475559,-400.0,0.00024861,2]
[385911632,1758131475569,-400.0,0.00024861,2]
[385911633,1758131475578,-586.41,0.00024861,2]
[385911634,1758131475587,-973.91,0.00024861,2]
[385911635,1758131475596,-400.0,0.00024861,2]
[385911636,1758131475605,-400.0,0.00024861,2]
[385911637,1758131475615,-400.0,0.00024861,2]
[385911638,1758131475624,-488.2,0.00024861,2]
[385911639,1758131475633,-400.0,0.00024861,2]
[385911640,1758131475642,-400.0,0.00024861,2]
[385911641,1758131475651,-410.08549303,0.00024861,2]
[385911642,1758131475661,-811.5,0.00024861,2]
[385911643,1758131475670,-400.0,0.00024861,2]
[385911644,1758131475680,-410.54941945,0.00024861,2]
[385911645,1758131475689,-561.36,0.00024861,2]
[385911646,1758131475699,-400.0,0.00024861,2]
[385911647,1758131475708,-501.34071487,0.00024861,2]
[385911648,1758131475717,-400.0,0.00024861,2]
[385911649,1758131475727,-400.0,0.00024861,2]
[385911650,1758131475736,-400.0,0.00024861,2]
[385911651,1758131475745,-400.0,0.00024861,2]
[385911652,1758131475755,-400.0,0.00024861,2]
[385911653,1758131475764,-514.08,0.00024861,2]
[385911654,1758131475773,-509.13916512,0.00024861,2]
[385911655,1758131475783,-400.0,0.00024861,2]
[385911656,1758131475792,-500.97,0.00024861,2]
[385911657,1758131475802,-440.9,0.00024861,2]
[385911658,1758131475811,-424.33,0.00024861,2]
[385911659,1758131475821,-605.89,0.00024861,2]
[385911660,1758131475830,-400.0,0.00024861,2]
[385911661,1758131475840,-400.0,0.00024861,2]
[385911662,1758131475849,-400.0,0.00024861,2]
[385911663,1758131475858,-400.0,0.00024861,2]
[385911664,1758131475867,-552.42,0.00024861,2]
[385911665,1758131475877,-400.0,0.00024861,2]
[385911666,1758131475887,-400.0,0.00024861,2]
[385911667,1758131475896,-400.0,0.00024861,2]
[385911668,1758131475906,-670.68,0.00024861,2]
[385911669,1758131475915,-400.0,0.00024861,2]
[385911670,1758131475926,-400.0,0.00024861,2]
[385911671,1758131475936,-400.0,0.00024861,2]
[385911672,1758131475948,-400.0,0.00024861,2]
[385911673,1758131475961,-543.04,0.00024861,2]
[385911674,1758131475971,-400.0,0.00024861,2]
[385911675,1758131475982,-443.28,0.00024861,2]
[385911676,1758131475993,-537.33,0.00024861,2]
[385911677,1758131476003,-407.15,0.00024861,2]
[385911678,1758131476013,-400.0,0.00024861,2]
[385911679,1758131476209,-400.0,0.00024861,2]
[385911680,1758131476218,-400.0,0.00024861,2]
[385911681,1758131476228,-464.27,0.00024861,2]
[385911682,1758131476237,-956.81,0.00024861,2]
[385911683,1758131476247,-414.30684113,0.00024861,2]
[385911684,1758131476257,-413.16573501,0.00024861,2]
[385911685,1758131476266,-400.0,0.00024861,2]
[385911686,1758131476276,-400.0,0.00024861,2]
[385911687,1758131476286,-532.35,0.00024861,2]
[385911688,1758131476296,-400.0,0.00024861,2]
[385911689,1758131476305,-400.0,0.00024861,2]
[385911690,1758131476314,-400.0,0.00024861,2]
[385911691,1758131476323,-400.0,0.00024861,2]
[385911692,1758131476333,-400.0,0.00024861,2]
[385911693,1758131476342,-400.0,0.00024861,2]
[385911694,1758131476351,-511.73,0.00024861,2]
[385911695,1758131476360,-400.0,0.00024861,2]
[385911696,1758131476369,-635.73,0.00024861,2]
[385911697,1758131476378,-400.0,0.00024861,2]
[385911698,1758131476387,-400.0,0.00024861,2]
[385911699,1758131476397,-407.93,0.00024861,2]
[385911700,1758131476406,-400.0,0.00024861,2]
[385911701,1758131476415,-440.8,0.00024861,2]
[385911702,1758131476424,-400.0,0.00024861,2]
[385911703,1758131476435,-530.97,0.00024861,2]
[385911704,1758131476449,-400.0,0.00024861,2]
[385911705,1758131476458,-400.0,0.00024861,2]
[385911706,1758131476467,-459.41,0.00024861,2]
[385911707,1758131476477,-400.0,0.00024861,2]
[385911708,1758131476486,-400.0,0.00024861,2]
[385911709,1758131476495,-400.0,0.00024861,2]
[385911710,1758131476505,-400.0,0.00024861,2]
[385911711,1758131476515,-400.0,0.00024861,2]
[385911712,1758131476524,-400.0,0.00024861,2]
[385911713,1758131476535,-400.0,0.00024861,2]
[385911714,1758131476545,-536.31,0.00024861,2]
[385911715,1758131476555,-400.0,0.00024861,2]
[385911716,1758131476564,-400.0,0.00024861,2]
[385911717,1758131476573,-400.0,0.00024861,2]
[385911718,1758131476582,-474.95,0.00024861,2]
[385911719,1758131476592,-539.34,0.00024861,2]
[385911720,1758131476602,-673.93,0.00024861,2]
[385911721,1758131476613,-400.0,0.00024861,2]
[385911722,1758131476623,-537.69,0.00024861,2]
[385911723,1758131476632,-400.0,0.00024861,2]
[385911724,1758131476642,-400.0,0.00024861,2]
[385911725,1758131476652,-400.0,0.00024861,2]
[385911726,1758131476662,-418.10377582,0.00024861,2]
[385911727,1758131476671,-400.0,0.00024861,2]
[385911728,1758131476681,-400.0,0.00024861,2]
[385911729,1758131476691,-613.04,0.00024861,2]
[385911730,1758131476701,-400.0,0.00024861,2]
[385911731,1758131476711,-400.0,0.00024861,2]
[385911732,1758131476720,-400.0,0.00024861,2]
[385911733,1758131476730,-309.51187138,0.00024861,2]
[385911734,1758131476739,-400.0,0.00024861,2]
[385911735,1758131476749,-458.12,0.00024861,2]
[385911736,1758131476759,-612.89,0.00024861,2]
[385911737,1758131476769,-541.33348377,0.00024861,2]
[385911738,1758131476778,-400.0,0.00024861,2]
[385911739,1758131476788,-506.5,0.00024861,2]
[385911740,1758131476799,-400.0,0.00024861,2]
[385911741,1758131476808,-400.0,0.00024861,2]
[385911742,1758131476818,-400.0,0.00024861,2]
[385911743,1758131476828,-400.0,0.00024861,2]
[385911744,1758131476838,-400.0,0.00024861,2]
[385911745,1758131476848,-444.54,0.00024861,2]
[385911746,1758131476857,-400.0,0.00024861,2]
[385911747,1758131476867,-400.0,0.00024861,2]
[385911748,1758131476877,-400.0,0.00024861,2]
[385911749,1758131476887,-400.0,0.00024861,2]
[385911750,1758131476897,-400.0,0.00024861,2]
[385911751,1758131476907,-518.06,0.00024861,2]
[385911752,1758131476916,-400.0,0.00024861,2]
[385911753,1758131476926,-300.0,0.00024861,2]
[385911754,1758131476936,-400.0,0.00024861,2]
[385911755,1758131476950,-449.17,0.00024861,2]
[385911756,1758131476959,-474.13,0.00024861,2]
[385911757,1758131476969,-400.0,0.00024861,2]
[385911758,1758131476978,-400.0,0.00024861,2]
[385911759,1758131476987,-400.0,0.00024861,2]
[385911760,1758131476996,-692.35,0.00024861,2]
[385911761,1758131477005,-400.0,0.00024861,2]
[385911762,1758131477016,-400.0,0.00024861,2]
[385911763,1758131477025,-400.0,0.00024861,2]
[385911764,1758131477035,-592.72,0.00024861,2]
[385911765,1758131477045,-443.07,0.00024861,2]
[385911766,1758131477055,-193.54938106,0.00024861,2]
[385911767,1758131477064,-413.29,0.00024861,2]
[385911768,1758131477073,-452.64,0.00024861,2]
[385911769,1758131477082,-400.0,0.00024861,2]
[385911770,1758131477091,-400.0,0.00024861,2]
[385911771,1758131477100,-400.0,0.00024861,2]
[385911772,1758131477110,-400.0,0.00024861,2]
[385911773,1758131477119,-400.0,0.00024861,2]
[385911774,1758131477129,-400.65,0.00024861,2]
[385911775,1758131477138,-400.0,0.00024861,2]
[385911776,1758131477148,-333.16024146,0.00024861,2]
[385911777,1758131477157,-400.0,0.00024861,2]
[385911778,1758131477167,-465.73,0.00024861,2]
[385911779,1758131477176,-464.32,0.00024861,2]
[385911780,1758131477185,-400.0,0.00024861,2]
[385911781,1758131477194,-949.62,0.00024861,2]
[385911782,1758131477204,-400.0,0.00024861,2]
[385911783,1758131477213,-1613.599,0.00024863,8]
[385911784,1758131477222,-501.67742549,0.00024873,2]
[385911785,1758131477231,-500.71240189,0.00024873,2]
[385911786,1758131477240,-500.0,0.00024873,2]
[385911787,1758131477249,-500.0,0.00024873,2]
[385911788,1758131477258,-512.61750263,0.00024873,2]
[385911789,1758131477267,-500.0,0.00024873,2]
[385911790,1758131477276,-500.0,0.00024873,2]
[385911791,1758131477287,-501.30922195,0.00024873,2]
[385911792,1758131477296,-500.0,0.00024873,2]
[385911793,1758131477305,-500.0,0.00024873,2]
[385911794,1758131477314,-502.0032795,0.00024873,2]
[385911795,1758131477324,-500.0,0.00024873,2]
[385911796,1758131477333,-500.0,0.00024873,2]
[385911797,1758131477343,-500.0,0.00024873,2]
[385911798,1758131477352,-500.71795316,0.00024873,2]
[385911799,1758131477362,-500.0,0.00024873,2]
[385911800,1758131477372,-500.0,0.00024873,2]
[385911801,1758131477381,-500.0,0.00024873,2]
[385911802,1758131477390,-200.0,0.00024873,2]
[385911803,1758131477409,-500.0,0.00024873,2]
[385911804,1758131477422,-502.96237646,0.00024873,2]
[385911805,1758131477432,-500.0,0.00024873,2]
[385911806,1758131477442,-150.0,0.00024873,2]
[385911807,1758131477451,-160.77690757,0.00024873,2]
[385911808,1758131477461,-500.0,0.00024876,2]
[385911809,1758131477471,-634.0,0.00024882,2]
[385911810,1758131477480,-500.0,0.00024889,2]
[385911811,1758131477490,-500.0,0.00024889,2]
[385911812,1758131477500,-300.0,0.00024899,10]
[385911813,1758131477510,-4624.33,0.00024899,2]
[385911814,1758131477520,-500.0,0.00024899,2]
[385911815,1758131477529,-7100.0,0.000249,9]
[385911816,1758131477540,-464946.178157,0.000249,2]
[385911817,1758131477550,-17546.45985075,0.000249,2]
[385911818,1758131477560,-150.0,0.00024906,2]
[385911819,1758131477570,-259.60310231,0.00024907,2]
[385911820,1758131477580,-330.86669903,0.00024909,2]
[385911821,1758131477590,-402.13029574,0.00024911,2]
[385911822,1758131477600,-473.39389246,0.00024912,2]
[385911823,1758131477610,-200.0,0.00024912,2]
[385911824,1758131477619,-7162.692994,0.00024913,2]
[385911825,1758131477629,-252.32695195,0.00024914,2]
[385911826,1758131477639,-544.65748917,0.00024914,2]
[385911827,1758131477649,-615.92108588,0.00024916,2]
[385911828,1758131477659,-687.1846826,0.00024917,2]
[385911829,1758131477669,-500.0,0.00024918,2]
[385911830,1758131477678,-2406.73,0.00024918,2]
[385911831,1758131477688,-500.0,0.00024918,2]
[385911832,1758131477698,-500.0,0.00024918,2]
[385911833,1758131477707,-500.0,0.00024918,2]
[385911834,1758131477717,-758.44827931,0.00024919,2]
[385911835,1758131477726,-300.0,0.0002492,10]
[385911836,1758131477736,-500.0,0.0002492,2]
[385911837,1758131477746,-2406.73,0.0002492,2]
[385911838,1758131477755,-500.0,0.0002492,2]
[385911839,1758131477765,-500.0,0.0002492,2]
[385911840,1758131477775,-500.0,0.0002492,2]
[385911841,1758131477786,-500.0,0.0002492,2]
[385911842,1758131477796,-500.0,0.0002492,2]
[385911843,1758131477808,-500.0,0.0002492,2]
[385911844,1758131477817,-500.0,0.0002492,2]
[385911845,1758131477827,-500.0,0.0002492,2]
[385911846,1758131477839,-4047.11627092,0.0002492,2]
[385911847,1758131477849,-509.42242788,0.00024921,2]
[385911848,1758131477859,-1000.0,0.00024921,2]
[385911849,1758131477868,-1000.0,0.00024921,2]
[385911850,1758131477878,-1000.0,0.00024921,2]
[385911851,1758131477888,-500.0,0.00024921,2]
[385911852,1758131477897,-2406.73,0.00024921,2]
[385911853,1758131477907,-500.0,0.00024921,2]
[385911854,1758131477917,-540.77749597,0.00024921,2]
[385911855,1758131477927,-829.71187602,0.00024921,2]
[385911856,1758131477936,-500.0,0.00024921,2]
[385911857,1758131477946,-300.0,0.00024929,10]
[385911858,1758131477955,-300.0,0.00024929,10]
[385911859,1758131477965,-500.0,0.00024929,2]
[385911860,1758131477975,-500.0,0.00024929,2]
[385911861,1758131477984,-4624.33,0.00024929,2]
[385911862,1758131477994,-500.0,0.00024929,2]
[385911863,1758131478003,-300.0,0.0002493,10]
[385911864,1758131478013,-300.0,0.0002493,10]
[385911865,1758131478023,-757.05,0.0002493,2]
[385911866,1758131478034,-545.77,0.0002493,2]
[385911867,1758131478043,-519.92,0.0002493,2]
[385911868,1758131478053,-400.0,0.0002493,2]
[385911869,1758131478063,-400.0,0.0002493,2]
[385911870,1758131478073,-400.0,0.0002493,2]
[385911871,1758131478082,-400.0,0.0002493,2]
[385911872,1758131478092,-631.68,0.0002493,2]
[385911873,1758131478102,-400.0,0.0002493,2]
[385911874,1758131478112,-400.0,0.0002493,2]
[385911875,1758131478122,-400.0,0.0002493,2]
[385911876,1758131478131,-442.6,0.0002493,2]
[385911877,1758131478141,-400.0,0.0002493,2]
[385911878,1758131478152,-405.25072484,0.0002493,2]
[385911879,1758131478162,-400.0,0.0002493,2]
[385911880,1758131478171,-400.0,0.0002493,2]
[385911881,1758131478180,-401.52470814,0.0002493,2]
[385911882,1758131478190,-400.0,0.0002493,2]
[385911883,1758131478199,-400.0,0.0002493,2]
[385911884,1758131478209,-400.0,0.0002493,2]
[385911885,1758131478219,-400.0,0.0002493,2]
[385911886,1758131478228,-400.0,0.0002493,2]
[385911887,1758131478238,-400.0,0.0002493,2]
[385911888,1758131478247,-400.0,0.0002493,2]
[385911889,1758131478256,-400.0,0.0002493,2]
[385911890,1758131478266,-1002.32,0.0002493,2]
[385911891,1758131478275,-400.0,0.0002493,2]
[385911892,1758131478285,-400.0,0.0002493,2]
[385911893,1758131478294,-400.0,0.0002493,2]
[385911894,1758131478304,-400.0,0.0002493,2]
[385911895,1758131478313,-400.0,0.0002493,2]
[385911896,1758131478325,-400.0,0.0002493,2]
[385911897,1758131478334,-400.0,0.0002493,2]
[385911898,1758131478344,-400.0,0.0002493,2]
[385911899,1758131478353,-400.0,0.0002493,2]
[385911900,1758131478363,-400.0,0.0002493,2]
[385911901,1758131478372,-400.0,0.0002493,2]
[385911902,1758131478381,-400.0,0.0002493,2]
[385911903,1758131478390,-222.52625278,0.0002493,2]
[385911904,1758131478400,-500.0,0.0002493,2]
[385911905,1758131478409,-500.0,0.0002493,2]
[385911906,1758131478418,-500.0,0.0002493,2]
[385911907,1758131478427,-400.0,0.0002493,2]
[385911908,1758131478437,-400.0,0.0002493,2]
[385911909,1758131478447,-400.0,0.0002493,2]
[385911910,1758131478457,-400.0,0.0002493,2]
[385911911,1758131478467,-400.0,0.0002493,2]
[385911912,1758131478477,-400.0,0.0002493,2]
[385911913,1758131478486,-400.0,0.0002493,2]
[385911914,1758131478496,-400.0,0.0002493,2]
[385911915,1758131478505,-400.0,0.0002493,2]
[385911916,1758131478515,-2406.73,0.0002493,2]
[385911917,1758131478525,-2406.73,0.0002493,2]
[385911918,1758131478534,-2406.73,0.0002493,2]
[385911919,1758131478545,-400.0,0.0002493,2]
[385911920,1758131478555,-400.0,0.0002493,2]
[385911921,1758131478565,-400.0,0.0002493,2]
[385911922,1758131478575,-400.0,0.0002493,2]
[385911923,1758131478584,-400.0,0.0002493,2]
[385911924,1758131478594,-400.0,0.0002493,2]
[385911925,1758131478604,-400.0,0.0002493,2]
[385911926,1758131478614,-400.0,0.0002493,2]
[385911927,1758131478624,-500.0,0.0002493,2]
[385911928,1758131478633,-509.27372646,0.0002493,2]
[385911929,1758131478643,-400.0,0.0002493,2]
[385911930,1758131478653,-400.0,0.0002493,2]
[385911931,1758131478662,-400.0,0.0002493,2]
[385911932,1758131478672,-401.99069115,0.0002493,2]
[385911933,1758131478682,-400.0,0.0002493,2]
[385911934,1758131478691,-400.0,0.0002493,2]
[385911935,1758131478701,-400.0,0.0002493,2]
[385911936,1758131478711,-400.0,0.0002493,2]
[385911937,1758131478721,-403.24498014,0.0002493,2]
[385911938,1758131478730,-400.0,0.0002493,2]
[385911939,1758131478740,-400.0,0.0002493,2]
[385911940,1758131478749,-400.0,0.0002493,2]
[385911941,1758131478759,-400.0,0.0002493,2]
[385911942,1758131478769,-400.0,0.0002493,2]
[385911943,1758131478779,-400.0,0.0002493,2]
[385911944,1758131478789,-403.08552051,0.0002493,2]
[385911945,1758131478798,-489.71,0.0002493,2]
[385911946,1758131478808,-400.0,0.0002493,2]
[385911947,1758131478818,-400.0,0.0002493,2]
[385911948,1758131478827,-400.0,0.0002493,2]
[385911949,1758131478837,-400.0,0.0002493,2]
[385911950,1758131478847,-400.0,0.0002493,2]
[385911951,1758131478857,-400.0,0.0002493,2]
[385911952,1758131478866,-400.0,0.0002493,2]
[385911953,1758131478876,-400.0,0.0002493,2]
[385911954,1758131478886,-400.0,0.0002493,2]
[385911955,1758131478896,-400.0,0.0002493,2]
[385911956,1758131478906,-400.0,0.0002493,2]
[385911957,1758131478916,-400.0,0.0002493,2]
[385911958,1758131478926,-400.0,0.0002493,2]
[385911959,1758131478936,-400.0,0.0002493,2]
[385911960,1758131478948,-400.0,0.0002493,2]
[385911961,1758131478958,-400.0,0.0002493,2]
[385911962,1758131478967,-400.0,0.0002493,2]
[385911963,1758131478977,-400.0,0.0002493,2]
[385911964,1758131478987,-400.0,0.0002493,2]
[385911965,1758131478998,-400.0,0.0002493,2]
[385911966,1758131479007,-400.0,0.0002493,2]
[385911967,1758131479016,-500.0,0.0002493,2]
[385911968,1758131479027,-500.0,0.0002493,2]
[385911969,1758131479037,-500.0,0.0002493,2]
[385911970,1758131479046,-400.0,0.0002493,2]
[385911971,1758131479056,-500.0,0.0002493,2]
[385911972,1758131479066,-500.0,0.0002493,2]
[385911973,1758131479075,-563.17,0.0002493,2]
[385911974,1758131479084,-400.0,0.0002493,2]
[385911975,1758131479094,-940.33,0.0002493,2]
[385911976,1758131479103,-400.0,0.0002493,2]
[385911977,1758131479112,-400.0,0.0002493,2]
[385911978,1758131479122,-400.0,0.0002493,2]
[385911979,1758131479132,-400.0,0.0002493,2]
[385911980,1758131479142,-400.0,0.0002493,2]
[385911981,1758131479151,-400.0,0.0002493,2]
[385911982,1758131479161,-400.0,0.0002493,2]
[385911983,1758131479170,-400.0,0.0002493,2]
[385911984,1758131479180,-400.0,0.0002493,2]
[385911985,1758131479190,-400.0,0.0002493,2]
[385911986,1758131479200,-400.0,0.0002493,2]
[385911987,1758131479417,-400.0,0.0002493,2]
[385911988,1758131479427,-400.0,0.0002493,2]
[385911989,1758131479438,-400.0,0.0002493,2]
[385911990,1758131479449,-217.66988449,0.0002493,2]
[385911991,1758131479458,-400.0,0.0002493,2]
[385911992,1758131479468,-400.0,0.0002493,2]
[385911993,1758131479477,-400.0,0.0002493,2]
[385911994,1758131479487,-400.0,0.0002493,2]
[385911995,1758131479496,-500.0,0.0002493,2]
[385911996,1758131479506,-500.0,0.0002493,2]
[385911997,1758131479515,-500.0,0.0002493,2]
[385911998,1758131479524,-4624.33,0.0002493,2]
[385911999,1758131479535,-4624.33,0.0002493,2]
[385912000,1758131479544,-500.0,0.0002493,2]
[385912001,1758131479554,-500.0,0.0002493,2]
[385912002,1758131479563,-500.0,0.0002493,2]
[385912003,1758131479573,-500.0,0.0002493,2]
[385912004,1758131479583,-500.0,0.0002493,2]
[385912005,1758131479593,-561678.22628612,0.00024931,2]
[385912006,1758131479603,-500.0,0.00024931,2]
[385912007,1758131479612,-5346.0,0.00024931,2]
[385912008,1758131479621,-500.0,0.00024932,2]
[385912009,1758131479631,-153.16,0.00024936,2]
[385912010,1758131479640,-1002.32,0.00024939,2]
[385912011,1758131479649,-1002.32,0.0002494,2]
[385912012,1758131479658,-512.52562644,0.0002494,2]
[385912013,1758131479668,-500.0,0.0002494,2]
[385912014,1758131479678,-500.0,0.0002494,2]
[385912015,1758131479687,-1035.84,0.0002494,2]
[385912016,1758131479696,-2077.5,0.0002494,2]
[385912017,1758131479706,-1000.0,0.0002494,2]
[385912018,1758131479716,-1360.36,0.0002494,2]
[385912019,1758131479725,-400.0,0.0002494,2]
[385912020,1758131479735,-1112.0,0.0002494,2]
[385912021,1758131479745,-680.54,0.0002494,2]
[385912022,1758131479755,-2950.65,0.0002494,2]
[385912023,1758131479764,-400.0,0.0002494,2]
[385912024,1758131479774,-937.21,0.0002494,2]
[385912025,1758131479784,-823.68,0.0002494,2]
[385912026,1758131479795,-1071.56,0.0002494,2]
[385912027,1758131479805,-400.0,0.0002494,2]
[385912028,1758131479814,-500.0,0.0002494,2]
[385912029,1758131479824,-1146.0,0.0002494,2]
[385912030,1758131479834,-887.5,0.0002494,2]
[385912031,1758131479843,-437.52,0.0002494,2]
[385912032,1758131479853,-500.0,0.0002494,2]
[385912033,1758131479863,-466.25,0.0002494,2]
[385912034,1758131479873,-500.0,0.00024941,2]
[385912035,1758131479883,-200.0,0.00024947,2]
[385912036,1758131479892,-200.0,0.00024947,2]
[385912037,1758131479902,-151.45470734,0.00024949,2]
[385912038,1758131479911,-1002.32,0.00024949,2]
[385912039,1758131479920,-1002.32,0.00024949,2]
[385912040,1758131479929,-500.0,0.00024949,2]
[385912041,1758131479939,-2406.73,0.00024949,2]
[385912042,1758131479949,-500.0,0.00024949,2]
[385912043,1758131479959,-500.0,0.00024949,2]
[385912044,1758131479972,-500.0,0.00024949,2]
[385912045,1758131479981,-355.3,0.00024949,2]
[385912046,1758131479991,-4624.33,0.00024949,2]
[385912047,1758131480001,-500.0,0.00024949,2]
[385912048,1758131480010,-500.0,0.00024949,2]
[385912049,1758131480020,-500.0,0.00024949,2]
[385912050,1758131480029,-41315.10022567,0.00024951,3]
[385912051,1758131480039,-1002.32,0.00024951,2]
[385912052,1758131480049,-500.0,0.00024951,2]
[385912053,1758131480058,-168.0,0.00024955,2]
[385912054,1758131480067,-160.0,0.0002496,3]
[385912055,1758131480077,-1002.32,0.0002496,2]
[385912056,1758131480087,-500.0,0.0002496,2]
[385912057,1758131480097,-168.0,0.00024967,2]
[385912058,1758131480107,-500.0,0.00024972,2]
[385912059,1758131480117,-2406.73,0.00024972,2]
[385912060,1758131480126,-500.0,0.00024973,2]
[385912061,1758131480135,-301.68280982,0.00024973,2]
[385912062,1758131480145,-500.0,0.00024973,2]
[385912063,1758131480155,-500.0,0.00024973,2]
[385912064,1758131480164,-500.0,0.00024973,2]
[385912065,1758131480173,-500.0,0.00024973,2]
[385912066,1758131480183,-566.56020778,0.00024973,2]
[385912067,1758131480192,-500.0,0.00024973,2]
[385912068,1758131480202,-500.0,0.00024973,2]
[385912069,1758131480211,-500.0,0.00024973,2]
[385912070,1758131480222,-165.13734492,0.00024973,2]
[385912071,1758131480232,-500.0,0.00024973,2]
[385912072,1758131480241,-500.0,0.00024973,2]
[385912073,1758131480250,-500.0,0.00024973,2]
[385912074,1758131480260,-500.0,0.00024973,2]
[385912075,1758131480269,-500.0,0.00024973,2]
[385912076,1758131480279,-504.77559094,0.00024973,2]
[385912077,1758131480288,-159.85260474,0.00024973,2]
[385912078,1758131480298,-500.0,0.00024973,2]
[385912079,1758131480307,-587.14935801,0.00024973,2]
[385912080,1758131480316,-199.0,0.00024978,2]
[385912081,1758131480326,-482.0,0.0002498,2]
[385912082,1758131480335,-168.0,0.00024997,2]
[385912083,1758131480344,-500.0,0.00024999,2]
[385912084,1758131480354,-3111.88700949,0.00025,2]
[385912085,1758131480364,-257.91778498,0.00025006,2]
[385912086,1758131480374,-7162.692994,0.00025035,2]
[385912087,1758131480384,-4499.0,0.00025054,7]
[385912088,1758131480395,-1181.47639216,0.00025058,2]
[385912089,1758131480404,-168.0,0.0002506,7]
[385912090,1758131480413,-804.63,0.00025096,2]
[385912091,1758131480422,-472.26,0.00025096,2]
[385912092,1758131480432,-804.63,0.00025096,2]
[385912093,1758131480441,-472.26,0.00025096,2]
[385912094,1758131480451,-804.63,0.00025096,2]
[385912095,1758131480460,-472.26,0.00025096,2]
[385912096,1758131480469,-804.63,0.00025096,2]
[385912097,1758131480479,-472.26,0.00025096,2]
[385912098,1758131480488,-472.26,0.00025096,2]
[385912099,1758131480498,-804.63,0.00025096,2]
[385912100,1758131480507,-472.26,0.00025096,2]
[385912101,1758131480516,-361.81,0.00025096,2]
[385912102,1758131480526,-472.26,0.00025096,2]
[385912103,1758131480536,-472.26,0.00025096,2]
[385912104,1758131480545,-472.26,0.00025096,2]